[Event "ONJK DE"]
[Site "Enschede, Netherlands"]
[Date "2022.08.10"]
[Round "6.6"]
[White "Katpatal, Akshaj (E)"]
[Black "Rudolph, Simon (E)"]
[Result "1-0"]
[TimeControl "40min + 30sec/move"]
[WhiteElo "1874"]
[BlackElo "996"]

1. e4 {[%clk 00:40:58]} {[%emt 00:00:01]} Nf6 {[%clk 00:40:59]} {[%emt
00:00:02]} 2. Nc3 {[%clk 00:41:18]} {[%emt 00:00:10]} d5 {[%clk 00:41:26]}
{[%emt 00:00:03]} 3. e5 {[%clk 00:41:34]} {[%emt 00:00:14]} Nfd7 {[%clk
00:41:50]} {[%emt 00:00:05]} 4. d4 {[%clk 00:41:58]} {[%emt 00:00:06]} e6
{[%clk 00:42:17]} {[%emt 00:00:04]} 5. Nf3 {[%clk 00:42:23]} {[%emt 00:00:05]}
c5 {[%clk 00:42:41]} {[%emt 00:00:05]} 6. Be3 {[%clk 00:42:48]} {[%emt
00:00:05]} cxd4 {[%clk 00:43:02]} {[%emt 00:00:09]} 7. Bxd4 {[%clk 00:43:12]}
{[%emt 00:00:07]} Nc6 {[%clk 00:43:27]} {[%emt 00:00:05]} 8. Bb5 {[%clk
00:43:34]} {[%emt 00:00:08]} Nxd4 {[%clk 00:43:34]} {[%emt 00:00:23]} 9. Qxd4
{[%clk 00:43:56]} {[%emt 00:00:07]} a6 {[%clk 00:44:01]} {[%emt 00:00:04]} 10.
Bxd7+ {[%clk 00:44:19]} {[%emt 00:00:07]} Qxd7 {[%clk 00:44:26]} {[%emt
00:00:04]} 11. O-O {[%clk 00:44:36]} {[%emt 00:00:14]} Be7 {[%clk 00:44:51]}
{[%emt 00:00:04]} 12. Na4 {[%clk 00:44:37]} {[%emt 00:00:29]} Qc7 {[%clk
00:44:42]} {[%emt 00:00:37]} 13. Nc3 {[%clk 00:44:43]} {[%emt 00:00:26]} O-O
{[%clk 00:44:58]} {[%emt 00:00:13]} 14. Rad1 {[%clk 00:44:59]} {[%emt
00:00:15]} f6 {[%clk 00:44:43]} {[%emt 00:00:45]} 15. Rfe1 {[%clk 00:44:53]}
{[%emt 00:00:36]} fxe5 {[%clk 00:42:46]} {[%emt 00:02:27]} 16. Qxe5 {[%clk
00:45:03]} {[%emt 00:00:20]} Qxe5 {[%clk 00:43:02]} {[%emt 00:00:15]} 17. Nxe5
{[%clk 00:45:24]} {[%emt 00:00:08]} Bd6 {[%clk 00:41:56]} {[%emt 00:01:35]} 18.
Nf3 {[%clk 00:45:35]} {[%emt 00:00:20]} Re8 {[%clk 00:40:00]} {[%emt 00:02:26]}
19. Nxd5 {[%clk 00:45:31]} {[%emt 00:00:35]} Rb8 {[%clk 00:39:27]} {[%emt
00:01:01]} 20. h3 {[%clk 00:45:16]} {[%emt 00:00:47]} b5 {[%clk 00:39:24]}
{[%emt 00:00:32]} 21. Nf6+ {[%clk 00:45:34]} {[%emt 00:00:13]} gxf6 {[%clk
00:39:14]} {[%emt 00:00:39]} 22. Rxd6 {[%clk 00:45:58]} {[%emt 00:00:07]} Kf7
{[%clk 00:39:01]} {[%emt 00:00:41]} 23. Nd4 {[%clk 00:45:46]} {[%emt 00:00:43]}
Rb7 {[%clk 00:29:47]} {[%emt 00:09:45]} 24. Rd1 {[%clk 00:44:52]} {[%emt
00:01:23]} Rc7 {[%clk 00:28:03]} {[%emt 00:02:15]} 25. c3 {[%clk 00:44:17]}
{[%emt 00:02:20]} Bb7 {[%clk 00:23:49]} {[%emt 00:04:42]} 26. Re1 {[%clk
00:43:53]} {[%emt 00:00:55]} Bc8 {[%clk 00:18:33]} {[%emt 00:05:47]} 27. Nc6
{[%clk 00:43:37]} {[%emt 00:00:45]} e5 {[%clk 00:16:40]} {[%emt 00:02:23]} 28.
Nb4 {[%clk 00:43:46]} {[%emt 00:00:21]} Ra7 {[%clk 00:15:51]} {[%emt 00:01:19]}
29. Red1 {[%clk 00:43:23]} {[%emt 00:00:54]} Re6 {[%clk 00:13:43]} {[%emt
00:02:38]} 30. R6d3 {[%clk 00:42:59]} {[%emt 00:00:53]} a5 {[%clk 00:13:18]}
{[%emt 00:00:55]} 31. Nd5 {[%clk 00:43:22]} {[%emt 00:00:07]} Rc6 {[%clk
00:11:40]} {[%emt 00:02:07]} 32. Ne3 {[%clk 00:43:04]} {[%emt 00:00:48]} Ke7
{[%clk 00:11:12]} {[%emt 00:00:52]} 33. Rd8 {[%clk 00:42:19]} {[%emt 00:01:22]}
Ke6 {[%clk 00:10:09]} {[%emt 00:01:32]} 34. Rh8 {[%clk 00:42:19]} {[%emt
00:00:31]} Rcc7 {[%clk 00:09:28]} {[%emt 00:01:06]} 35. Rdd8 {[%clk 00:42:38]}
{[%emt 00:00:16]} Ba6 {[%clk 00:09:13]} {[%emt 00:00:43]} 36. Nd5 {[%clk
00:42:25]} {[%emt 00:00:45]} Rd7 {[%clk 00:08:52]} {[%emt 00:00:40]} 37. Ne3
{[%clk 00:42:03]} {[%emt 00:01:03]} Rab7 {[%clk 00:08:27]} {[%emt 00:00:53]} 38.
Ra8 {[%clk 00:42:01]} {[%emt 00:00:34]} Ra7 {[%clk 00:08:41]} {[%emt 00:00:15]}
39. Rhb8 {[%clk 00:42:18]} {[%emt 00:00:14]} Kf7 {[%clk 00:07:22]} {[%emt
00:01:46]} 40. Ng4 {[%clk 00:42:33]} {[%emt 00:00:17]} Rdc7 {[%clk 00:06:37]}
{[%emt 00:01:16]} 41. Rf8+ {[%clk 00:42:03]} {[%emt 00:01:00]} Ke7 {[%clk
00:05:39]} {[%emt 00:01:29]} 42. Rae8+ {[%clk 00:41:48]} {[%emt 00:00:45]} Kd6
{[%clk 00:05:31]} {[%emt 00:00:37]} 43. Rxf6+ {[%clk 00:42:08]} {[%emt
00:00:09]} Kc5 {[%clk 00:05:53]} {[%emt 00:00:06]} 44. Rxe5+ {[%clk 00:42:30]}
{[%emt 00:00:11]} Kc4 {[%clk 00:06:03]} {[%emt 00:00:18]} 45. Ne3+ {[%clk
00:42:52]} {[%emt 00:00:07]} Kd3 {[%clk 00:06:09]} {[%emt 00:00:27]} 46. Rd6+
{[%clk 00:43:15]} {[%emt 00:00:07]} 1-0

[Event "ONJK DE"]
[Site "Enschede, Netherlands"]
[Date "2022.08.10"]
[Round "6.7"]
[White "Koppenens, Oscar (E)"]
[Black "Los, Evan (E)"]
[Result "1/2-1/2"]
[TimeControl "40min + 30sec/move"]
[WhiteElo "1266"]
[BlackElo "1050"]

1. e4 {[%clk 00:40:58]} {[%emt 00:00:02]} e5 {[%clk 00:40:57]} {[%emt
00:00:04]} 2. Nf3 {[%clk 00:41:24]} {[%emt 00:00:03]} Nc6 {[%clk 00:41:26]} 3.
Bc4 {[%clk 00:41:48]} {[%emt 00:00:06]} Nf6 {[%clk 00:41:52]} {[%emt 00:00:04]}
4. d4 {[%clk 00:42:15]} {[%emt 00:00:04]} exd4 {[%clk 00:40:36]} {[%emt
00:01:46]} 5. e5 {[%clk 00:42:38]} {[%emt 00:00:07]} d5 {[%clk 00:40:46]}
{[%emt 00:00:19]} 6. Bb5 {[%clk 00:43:02]} {[%emt 00:00:06]} Ne4 {[%clk
00:35:57]} {[%emt 00:05:18]} 7. Nxd4 {[%clk 00:43:26]} {[%emt 00:00:06]} Bd7
{[%clk 00:36:15]} {[%emt 00:00:13]} 8. Bxc6 {[%clk 00:43:51]} {[%emt 00:00:05]}
Bxc6 {[%clk 00:35:40]} {[%emt 00:01:04]} 9. O-O {[%clk 00:42:57]} {[%emt
00:01:25]} Be7 {[%clk 00:35:57]} {[%emt 00:00:13]} 10. f3 {[%clk 00:42:39]}
{[%emt 00:00:48]} Nc5 {[%clk 00:35:59]} {[%emt 00:00:27]} 11. b4 {[%clk
00:42:34]} {[%emt 00:00:36]} Ne6 {[%clk 00:35:46]} {[%emt 00:00:43]} 12. Nxc6
{[%clk 00:42:30]} {[%emt 00:00:34]} bxc6 {[%clk 00:36:01]} {[%emt 00:00:15]} 13.
c3 {[%clk 00:42:55]} {[%emt 00:00:06]} O-O {[%clk 00:36:20]} {[%emt 00:00:10]}
14. Be3 {[%clk 00:43:07]} {[%emt 00:00:18]} f6 {[%clk 00:33:37]} {[%emt
00:03:13]} 15. f4 {[%clk 00:40:24]} {[%emt 00:03:13]} fxe5 {[%clk 00:32:29]}
{[%emt 00:01:38]} 16. fxe5 {[%clk 00:40:35]} {[%emt 00:00:18]} Rxf1+ {[%clk
00:31:28]} {[%emt 00:01:30]} 17. Qxf1 {[%clk 00:40:02]} {[%emt 00:01:04]} Bg5
{[%clk 00:30:14]} {[%emt 00:01:45]} 18. Bxg5 {[%clk 00:39:57]} {[%emt
00:00:35]} Qxg5 {[%clk 00:30:36]} {[%emt 00:00:07]} 19. Qe1 {[%clk 00:40:05]}
{[%emt 00:00:17]} Nf4 {[%clk 00:30:44]} {[%emt 00:00:28]} 20. Qd2 {[%clk
00:38:24]} {[%emt 00:02:04]} Qxe5 {[%clk 00:31:02]} {[%emt 00:00:19]} 21. Na3
{[%clk 00:38:04]} {[%emt 00:00:51]} Ne2+ {[%clk 00:30:56]} {[%emt 00:00:35]} 22.
Kh1 {[%clk 00:37:47]} {[%emt 00:00:47]} Qxc3 {[%clk 00:30:58]} {[%emt
00:00:28]} 23. Qxc3 {[%clk 00:38:05]} {[%emt 00:00:11]} Nxc3 {[%clk 00:31:23]}
{[%emt 00:00:05]} 24. Rc1 {[%clk 00:38:30]} {[%emt 00:00:04]} Nxa2 {[%clk
00:30:44]} {[%emt 00:01:11]} 25. Rxc6 {[%clk 00:38:51]} {[%emt 00:00:09]} Nxb4
{[%clk 00:31:02]} {[%emt 00:00:13]} 26. Rxc7 {[%clk 00:39:19]} Rd8 {[%clk
00:31:20]} {[%emt 00:00:11]} 27. h3 {[%clk 00:35:40]} {[%emt 00:04:07]} d4
{[%clk 00:30:25]} {[%emt 00:01:26]} 28. Rxa7 {[%clk 00:35:30]} {[%emt
00:00:41]} d3 {[%clk 00:30:31]} {[%emt 00:00:24]} 29. Nb1 {[%clk 00:34:57]}
{[%emt 00:01:03]} d2 {[%clk 00:30:51]} {[%emt 00:00:11]} 30. Nxd2 {[%clk
00:35:25]} {[%emt 00:00:02]} Rxd2 {[%clk 00:31:17]} {[%emt 00:00:04]} 31. Ra4
{[%clk 00:35:04]} {[%emt 00:00:52]} Nc6 {[%clk 00:31:18]} {[%emt 00:00:29]} 32.
Kh2 {[%clk 00:35:21]} {[%emt 00:00:12]} Ne5 {[%emt 00:00:18]} 33. Re4 {[%clk
00:35:09]} {[%emt 00:00:40]} Nf3+ {[%clk 00:29:51]} {[%emt 00:02:11]} 34. Kg3
{[%clk 00:35:26]} {[%emt 00:00:13]} Ng5 {[%clk 00:30:20]} {[%emt 00:00:02]} 35.
Rg4 {[%clk 00:35:40]} {[%emt 00:00:15]} Rd3+ {[%clk 00:29:15]} {[%emt
00:01:35]} 36. Kf4 {[%clk 00:33:47]} {[%emt 00:02:22]} Nxh3+ {[%clk 00:29:31]}
{[%emt 00:00:16]} 37. gxh3 {[%clk 00:33:59]} {[%emt 00:00:17]} Rxh3 {[%clk
00:30:00]} {[%emt 00:00:02]} 38. Kg5 {[%clk 00:34:05]} {[%emt 00:00:24]} Rf3
{[%clk 00:30:09]} {[%emt 00:00:21]} 39. Ra4 {[%clk 00:34:13]} {[%emt 00:00:21]}
h6+ {[%clk 00:30:05]} {[%emt 00:00:34]} 40. Kg6 {[%clk 00:34:15]} {[%emt
00:00:26]} Rf6+ {[%clk 00:29:47]} {[%emt 00:00:51]} 41. Kh5 {[%clk 00:34:32]}
{[%emt 00:00:12]} Kh7 {[%clk 00:30:10]} {[%emt 00:00:07]} 42. Ra7 {[%clk
00:34:53]} {[%emt 00:00:09]} Rf5+ {[%clk 00:30:18]} {[%emt 00:00:23]} 43. Kg4
{[%clk 00:35:02]} {[%emt 00:00:20]} Rg5+ {[%clk 00:29:51]} {[%emt 00:00:58]} 44.
Kf4 {[%clk 00:35:04]} {[%emt 00:00:28]} Rg6 {[%clk 00:29:35]} {[%emt 00:00:46]}
45. Ra5 {[%clk 00:34:51]} {[%emt 00:00:43]} Rf6+ {[%clk 00:29:23]} {[%emt
00:00:42]} 46. Kg4 {[%clk 00:34:42]} {[%emt 00:00:38]} g5 {[%clk 00:29:20]}
{[%emt 00:00:32]} 47. Kh5 {[%clk 00:35:06]} {[%emt 00:00:07]} Rf7 {[%clk
00:28:48]} {[%emt 00:01:03]} 48. Ra6 {[%clk 00:34:36]} {[%emt 00:01:00]} Rg7
{[%clk 00:28:54]} {[%emt 00:00:24]} 49. Rxh6+ {[%clk 00:34:56]} {[%emt
00:00:09]} 1/2-1/2

[Event "ONJK DE"]
[Site "Enschede, Netherlands"]
[Date "2022.08.10"]
[Round "6.8"]
[White "Mittal, Aashray (E)"]
[Black "Thijssen, Freek (E)"]
[Result "1/2-1/2"]
[TimeControl "40min + 30sec/move"]
[WhiteElo "1153"]
[BlackElo "1484"]

1. e4 {[%clk 00:40:59]} {[%emt 00:00:01]} e5 {[%clk 00:40:52]} {[%emt
00:00:08]} 2. Nf3 {[%clk 00:41:28]} Nc6 {[%clk 00:41:16]} {[%emt 00:00:07]} 3.
d4 {[%clk 00:41:54]} {[%emt 00:00:04]} exd4 {[%clk 00:41:32]} {[%emt 00:00:13]}
4. Nxd4 {[%clk 00:42:20]} {[%emt 00:00:04]} Bc5 {[%clk 00:41:53]} {[%emt
00:00:08]} 5. Nb3 {[%clk 00:42:47]} {[%emt 00:00:04]} Bb6 {[%clk 00:42:06]}
{[%emt 00:00:17]} 6. Nc3 {[%clk 00:43:12]} {[%emt 00:00:05]} Nf6 {[%clk
00:42:10]} {[%emt 00:00:25]} 7. Bg5 {[%clk 00:43:32]} {[%emt 00:00:10]} d6
{[%clk 00:41:52]} {[%emt 00:00:49]} 8. Qe2 {[%clk 00:43:43]} {[%emt 00:00:19]}
h6 {[%clk 00:41:55]} {[%emt 00:00:27]} 9. Bh4 {[%clk 00:44:09]} {[%emt
00:00:03]} Be6 {[%clk 00:37:30]} {[%emt 00:04:56]} 10. O-O-O {[%clk 00:44:00]}
{[%emt 00:00:39]} g5 {[%clk 00:34:57]} {[%emt 00:03:03]} 11. Bg3 {[%clk
00:44:25]} {[%emt 00:00:05]} Nd7 {[%clk 00:29:42]} {[%emt 00:05:45]} 12. h4
{[%clk 00:43:25]} {[%emt 00:01:29]} Qe7 {[%clk 00:28:55]} {[%emt 00:01:18]} 13.
hxg5 {[%clk 00:43:39]} {[%emt 00:00:16]} Qxg5+ {[%clk 00:29:18]} {[%emt
00:00:07]} 14. Kb1 {[%clk 00:44:02]} {[%emt 00:00:07]} f6 {[%clk 00:27:39]}
{[%emt 00:02:09]} 15. Nd5 {[%clk 00:43:44]} {[%emt 00:00:48]} Bxd5 {[%clk
00:27:25]} {[%emt 00:00:44]} 16. exd5+ {[%clk 00:44:08]} {[%emt 00:00:06]} Ne7
{[%clk 00:27:42]} {[%emt 00:00:13]} 17. Re1 {[%clk 00:40:31]} {[%emt 00:04:07]}
Rh7 {[%clk 00:26:28]} {[%emt 00:01:45]} 18. Bh4 {[%clk 00:38:49]} {[%emt
00:02:11]} Qxd5 {[%clk 00:26:10]} {[%emt 00:00:48]} 19. Qg4 {[%clk 00:35:22]}
{[%emt 00:03:57]} Qf7 {[%clk 00:22:26]} {[%emt 00:04:15]} 20. Bd3 {[%clk
00:35:02]} {[%emt 00:00:49]} Rg7 {[%clk 00:22:18]} {[%emt 00:00:38]} 21. Qf4
{[%clk 00:34:46]} {[%emt 00:00:45]} O-O-O {[%clk 00:21:57]} {[%emt 00:00:52]}
22. Qxh6 {[%clk 00:34:10]} {[%emt 00:01:05]} Rxg2 {[%clk 00:21:03]} {[%emt
00:01:25]} 23. Qf4 {[%clk 00:30:50]} {[%emt 00:03:49]} Ng6 {[%clk 00:19:50]}
{[%emt 00:01:44]} 24. Qe4 {[%clk 00:29:36]} {[%emt 00:01:44]} Nxh4 {[%clk
00:19:39]} {[%emt 00:00:41]} 25. Rxh4 {[%clk 00:29:20]} {[%emt 00:00:45]} Bxf2
{[%clk 00:18:39]} {[%emt 00:01:31]} 26. Rh7 {[%clk 00:28:45]} {[%emt 00:01:05]}
Rg7 {[%clk 00:18:55]} {[%emt 00:00:15]} 27. Rxg7 {[%clk 00:27:33]} {[%emt
00:01:41]} Qxg7 {[%clk 00:19:13]} {[%emt 00:00:12]} 28. Rh1 {[%clk 00:27:11]}
{[%emt 00:00:52]} Rh8 {[%clk 00:18:34]} {[%emt 00:01:08]} 29. Na5 {[%clk
00:26:00]} {[%emt 00:01:41]} Rxh1+ {[%clk 00:18:40]} {[%emt 00:00:25]} 30. Qxh1
{[%clk 00:26:02]} {[%emt 00:00:27]} Qg1+ {[%clk 00:19:00]} {[%emt 00:00:11]} 31.
Qxg1 {[%clk 00:26:26]} {[%emt 00:00:06]} Bxg1 {[%clk 00:19:27]} {[%emt
00:00:04]} 32. Bf5 {[%clk 00:26:03]} {[%emt 00:00:52]} Bb6 {[%clk 00:18:10]}
{[%emt 00:01:47]} 33. Nc4 {[%clk 00:26:18]} {[%emt 00:00:15]} Kd8 {[%clk
00:18:10]} {[%emt 00:00:30]} 34. Be4 {[%emt 00:02:19]} Nc5 {[%clk 00:18:10]}
{[%emt 00:00:30]} 35. Bf5 {[%clk 00:24:24]} {[%emt 00:00:34]} d5 {[%clk
00:17:39]} {[%emt 00:01:02]} 36. Ne3 {[%clk 00:23:49]} {[%emt 00:01:05]} c6
{[%clk 00:17:31]} {[%emt 00:00:39]} 37. Ng4 {[%clk 00:24:09]} {[%emt 00:00:09]}
Ne4 {[%clk 00:14:04]} {[%emt 00:03:57]} 38. Bxe4 {[%clk 00:24:26]} {[%emt
00:00:12]} dxe4 {[%clk 00:14:29]} {[%emt 00:00:05]} 39. Nxf6 {[%clk 00:24:52]}
{[%emt 00:00:04]} e3 {[%clk 00:14:50]} {[%emt 00:00:11]} 40. Kc1 {[%clk
00:25:10]} {[%emt 00:00:11]} Ke7 {[%clk 00:14:44]} {[%emt 00:00:36]} 41. Ng4
{[%clk 00:25:35]} {[%emt 00:00:05]} Ke6 {[%clk 00:15:07]} {[%emt 00:00:06]} 42.
Kd1 {[%emt 00:01:32]} 1/2-1/2

[Event "ONJK DE"]
[Site "Enschede, Netherlands"]
[Date "2022.08.10"]
[Round "7.1"]
[White "Groenewoud, Joel"]
[Black "Terlouw, Wouter"]
[Result "1-0"]
[TimeControl "40min + 30sec/move"]
[WhiteElo "1497"]
[BlackElo "1720"]

1. e4 {[%clk 00:40:59]} c5 {[%clk 00:40:55]} {[%emt 00:00:06]} 2. Nf3 {[%clk
00:41:26]} {[%emt 00:00:03]} Nc6 {[%clk 00:41:19]} {[%emt 00:00:06]} 3. d4
{[%clk 00:41:51]} {[%emt 00:00:04]} cxd4 {[%clk 00:41:45]} {[%emt 00:00:05]} 4.
Nxd4 {[%clk 00:42:16]} {[%emt 00:00:05]} g6 {[%clk 00:42:09]} {[%emt 00:00:06]}
5. c4 {[%clk 00:42:41]} {[%emt 00:00:05]} Bg7 {[%clk 00:42:34]} {[%emt
00:00:04]} 6. Be3 {[%clk 00:43:05]} {[%emt 00:00:06]} Nf6 {[%clk 00:42:59]}
{[%emt 00:00:06]} 7. Nc3 {[%clk 00:43:30]} {[%emt 00:00:05]} Ng4 {[%clk
00:43:22]} {[%emt 00:00:07]} 8. Nxc6 {[%clk 00:42:40]} {[%emt 00:01:20]} Nxe3
{[%clk 00:43:44]} {[%emt 00:00:07]} 9. Nxd8 {[%clk 00:42:49]} {[%emt 00:00:22]}
Nxd1 {[%clk 00:44:09]} {[%emt 00:00:05]} 10. Rxd1 {[%clk 00:43:00]} {[%emt
00:00:19]} Bxc3+ {[%clk 00:44:19]} {[%emt 00:00:20]} 11. bxc3 {[%clk 00:43:24]}
{[%emt 00:00:05]} Kxd8 {[%clk 00:44:45]} {[%emt 00:00:05]} 12. h4 {[%clk
00:43:00]} {[%emt 00:00:54]} h6 {[%clk 00:44:45]} {[%emt 00:00:29]} 13. Bd3
{[%clk 00:42:47]} {[%emt 00:00:43]} b6 {[%clk 00:44:44]} {[%emt 00:00:32]} 14.
Ke2 {[%clk 00:42:52]} {[%emt 00:00:25]} Ba6 {[%clk 00:44:38]} {[%emt 00:00:35]}
15. c5 {[%clk 00:42:12]} {[%emt 00:01:12]} Bxd3+ {[%clk 00:44:48]} {[%emt
00:00:19]} 16. Rxd3 {[%clk 00:42:35]} {[%emt 00:00:07]} bxc5 {[%clk 00:45:09]}
{[%emt 00:00:09]} 17. Rhd1 {[%clk 00:43:00]} {[%emt 00:00:05]} d6 {[%clk
00:43:35]} {[%emt 00:02:04]} 18. e5 {[%clk 00:43:27]} {[%emt 00:00:03]} Re8
{[%clk 00:38:40]} {[%emt 00:05:24]} 19. Kf3 {[%clk 00:43:03]} {[%emt 00:00:55]}
Kd7 {[%clk 00:36:30]} {[%emt 00:02:26]} 20. exd6 {[%clk 00:43:18]} {[%emt
00:00:29]} e6 {[%clk 00:36:47]} {[%emt 00:00:13]} 21. g4 {[%clk 00:42:34]}
{[%emt 00:01:14]} Rab8 {[%clk 00:36:46]} {[%emt 00:00:31]} 22. R3d2 {[%clk
00:42:27]} {[%emt 00:00:37]} Rb6 {[%clk 00:36:43]} {[%emt 00:00:28]} 23. g5
{[%clk 00:40:37]} {[%emt 00:02:25]} h5 {[%clk 00:36:13]} {[%emt 00:01:00]} 24.
Ke4 {[%clk 00:40:29]} {[%emt 00:00:38]} Rb5 {[%clk 00:33:23]} {[%emt 00:03:20]}
25. c4 {[%clk 00:38:44]} {[%emt 00:02:15]} Rb4 {[%clk 00:32:58]} {[%emt
00:00:52]} 26. Rc2 {[%clk 00:39:09]} {[%emt 00:00:09]} e5 {[%clk 00:30:46]}
{[%emt 00:02:42]} 27. Kd5 {[%clk 00:35:12]} {[%emt 00:04:26]} Rb6 {[%clk
00:30:32]} {[%emt 00:00:45]} 28. Rcd2 {[%clk 00:33:39]} {[%emt 00:02:03]} Rc6
{[%clk 00:30:24]} {[%emt 00:00:37]} 29. Ke4 {[%clk 00:31:39]} {[%emt 00:02:30]}
Re6 {[%clk 00:28:38]} {[%emt 00:02:16]} 30. Rb1 {[%clk 00:31:18]} {[%emt
00:00:52]} Rb6 {[%clk 00:24:14]} {[%emt 00:04:53]} 31. Rxb6 {[%clk 00:29:57]}
{[%emt 00:01:52]} axb6 {[%clk 00:24:39]} {[%emt 00:00:05]} 32. Rd5 {[%clk
00:30:02]} {[%emt 00:00:25]} Rxd6 {[%clk 00:24:33]} {[%emt 00:00:35]} 33. Kxe5
{[%clk 00:30:20]} {[%emt 00:00:12]} Rxd5+ {[%clk 00:23:58]} {[%emt 00:01:06]}
34. Kxd5 {[%clk 00:30:42]} {[%emt 00:00:07]} Ke7 {[%clk 00:22:13]} {[%emt
00:02:15]} 35. Kc6 {[%clk 00:26:23]} {[%emt 00:04:49]} f6 {[%clk 00:22:36]}
{[%emt 00:00:07]} 36. f4 {[%clk 00:25:44]} {[%emt 00:01:09]} 1-0